Cogmind - Beta 15 @@@ ROGUE MODE // 2025.10.21 @ 02:18:37 Player: mehbruh Result: Destroyed by Autobeam Turret with Autobeam Performance ------------- Evolutions (0) 0 Regions Visited (2) 400 Robots Destroyed (23) 115 Value Destroyed (402) 402 Prototype IDs (0) 0 Alien Tech Used (0) 0 Bonus (0) 0 TOTAL SCORE: 917 Bonus ------- None Cogmind --------- Core Integrity 0/250 Matter 290/300 Energy 246/250 System Corruption 0% Temperature Cool (14) Movement Treading (160) Location -10/Subcaves Parts ------- > --- POWER (1) -------- Ion Engine > --- PROPULSION (2) --- Light Treads Light Treads > --- UTILITY (2) ------ Heat Sink Large Storage Unit > --- WEAPON (2) ------- Small Laser Subdweller Laser > --- INVENTORY (15) --- Ion Engine Subdweller Power Source Light Treads Light Treads Compact Wheel High-capacity Storage Unit Large Matter Pod (150) Light Assault Rifle Light Assault Rifle Mining Laser Makeshift Hammer Peak State ------------ > --- POWER ------------ Ion Engine > --- PROPULSION ------- Light Treads Light Treads > --- UTILITY ---------- Heat Sink Large Storage Unit > --- WEAPON ----------- Small Laser Makeshift Hammer > --- INVENTORY -------- Ion Engine Subdweller Power Source Light Treads Light Treads Light Treads Light Treads Compact Wheel High-capacity Storage Unit Large Matter Pod Small Laser Subdweller Laser Light Assault Rifle Light Assault Rifle Light Cannon Mining Laser [Rating: 11] Favorites ----------- Power Ion Engine Engine Ion Engine Propulsion Light Treads Treads Light Treads Utility Large Storage Unit Device Seismic Detector Storage Large Storage Unit Weapon Light Assault Rifle Energy Gun Small Laser Ballistic Gun Light Assault Rifle Ballistic Cannon Light Cannon Special Weapon Mining Laser Impact Weapon Makeshift Hammer Build | -11 -10 -10 ------- Run | Yrd Mat Sub Slots Evolved . | . . . Power . | . . . Propulsion . | . . . Utility . | . . . Weapon . | . . . Parts Attached 18 | 5 6 7 Power 2 | 1 . 1 Engine 2 | 1 . 1 Core . | . . . Reactor . | . . . Propulsion 4 | 1 1 2 Treads 4 | 1 1 2 Leg . | . . . Wheel . | . . . Hover . | . . . Flight . | . . . Utility 4 | 1 2 1 Device 2 | . 1 1 Storage 2 | 1 1 . Processor . | . . . Hackware . | . . . Protection . | . . . Artifact . | . . . Weapon 8 | 2 3 3 Energy Gun 3 | . 1 2 Energy Cannon . | . . . Ballistic Gun 2 | 2 . . Ballistic Cannon 1 | . 1 . Launcher . | . . . Special Weapon 1 | . 1 . Impact Weapon 1 | . . 1 Slashing Weapon . | . . . Piercing Weapon . | . . . Special Melee Weapon . | . . . Unidentified Prototypes . | . . . Parts Lost 6 | . . 6 Power 1 | . . 1 Propulsion 2 | . . 2 Utility 1 | . . 1 Weapon 2 | . . 2 Highest Loss Streak 2 | . . 2 To Critical Strikes . | . . . Average Backups 13 | 4 13 14 Power 2 | . 2 2 Propulsion 3 | 2 3 4 Utility 4 | . 5 2 Weapon 3 | 1 2 4 Tool/Special . | . . . Unused Backups 16 | 1 7 8 Power 3 | . . 3 Propulsion 6 | 1 2 3 Utility 7 | . 5 2 Weapon . | . . . Tool/Special . | . . . Average Slot Usage (%) 97 | . 98 95 Engine 14 | . 14 14 Treads 27 | . 27 28 Device 13 | . 12 13 Storage 14 | . 14 14 Energy Gun 5 | . 3 9 Ballistic Gun 9 | . 13 4 Ballistic Cannon 9 | . 10 7 Impact Weapon 1 | . . 3 Peak Build Rating 11 | 5 8 11 Average Rating 7 | 3 7 8 On Entrance 4 | . 5 8 Naked Turns . | . . . Heaviest Build 33 | 12 30 33 Greatest Support 40 | 20 40 40 Greatest Overweight (x) . | . . . Average Overweight (x) . | . . . Largest Inventory Capacity 15 | 8 15 15 Average Capacity 14 | 7 14 15 Most Carried 15 | 8 15 15 Average Carried 13 | 5 14 14 Final Capacity 15 | 8 15 15 Final Carried 15 | 8 15 11 Class Distribution -------------------- 100% | Mutant Dominant Class ---------------- Mutant | -10/Materials Mutant | -10/Subcaves Resources | -11 -10 -10 ----------- Run | Yrd Mat Sub Matter Collected 716 | 151 434 131 Remotely . | . . . Salvage Created 532 | 45 360 127 Parts 33 | 4 24 5 Haulers Intercepted 1 | . 1 . Recyclers Shooed 1 | 1 . . Parts Field Recycled . | . . . Retrieved Matter . | . . . Parts Self-Destructed 6 | . . 6 Prevented 1 | . . 1 Kills | -11 -10 -10 ------- Run | Yrd Mat Sub Combat Hostiles Destroyed 18 | . 11 7 Melee 2 | . . 2 Guns 5 | . 4 1 Cannons 11 | . 7 4 Classes Destroyed 7 | 1 4 2 Worker 1 | . 1 . Tunneler 3 | 2 1 . Hauler 1 | . 1 . Swarmer 11 | . 6 5 Grunt 5 | . 5 . Sentry 1 | . . 1 Subdweller 1 | . . 1 Best Kill Streak 5 | 2 4 5 Combat Bots Only 5 | . 3 5 Max Kills in Single Turn 2 | 1 2 1 Gunslinging . | . . . Exploded . | . . . Melee 1 | . . 1 Uniques/NPCs Destroyed . | . . . Combat | -11 -10 -10 -------- Run | Yrd Mat Sub Hostile Shots Fired 130 | . 28 102 Missed 40 | . 12 28 Hits 90 | . 16 74 Projectile 90 | . 16 74 Critical Strikes 3 | . . 3 Damage Taken 1085 | . 153 932 Core 255 | . 28 227 Absorbed by Shields . | . . . Core Remaining (%) 100 | 100 . . Volleys Fired 53 | 4 32 17 Largest 2 | 2 2 2 Hottest 100 | 40 100 90 Shots Fired 101 | 8 59 34 Gun 59 | 8 34 17 Cannon 37 | . 20 17 Launcher . | . . . Special 5 | . 5 . Kinetic 71 | 8 46 17 Thermal 30 | . 13 17 Explosive . | . . . Electromagnetic . | . . . Robot Hit Streak 13 | 4 9 13 Robot Miss Streak 3 | 1 3 1 Penetration Max . | . . . Secondary Targets . | . . . Shots Hit Robots 76 | 6 35 35 Core Hits 34 | 5 20 9 Critical Kills 1 | . . 1 Critical Parts Destroyed 1 | . . 1 Critical Strikes 5 | . 1 4 Blast 3 | . 1 2 Smash 2 | . . 2 Melee Attacks 9 | . . 9 Impact 9 | . . 9 Slashing . | . . . Piercing . | . . . Sneak Attacks . | . . . Combat Hostiles . | . . . Follow-up Attacks . | . . . Damage Inflicted 1283 | 46 534 703 Guns 460 | 46 211 203 Cannons 527 | . 258 269 Explosions . | . . . Melee 231 | . . 231 Ramming 65 | . 65 . Kinetic 715 | 46 400 269 Thermal 272 | . 69 203 Explosive . | . . . Electromagnetic . | . . . Impact 231 | . . 231 Slashing . | . . . Piercing . | . . . Highest Corruption . | . . . Average Corruption . | . . . Corruption Purged . | . . . Corruption Blocked . | . . . Overload Shots . | . . . Overflow Damage 42 | . . 42 Projectiles . | . . . Explosions . | . . . Melee 42 | . . 42 Knockbacks 9 | . 4 5 Impact 1 | . 1 . Kinetic 8 | . 3 5 Secondary . | . . . Self-Inflicted Damage . | . . . Shots . | . . . Rammed 12 | 1 11 . Targets Rammed 12 | 1 11 . Kicked . | . . . Crushed . | . . . Highest Temperature 60 | . 60 . Average Temperature 15 | . 15 . Received Heat Transfer 342 | . 21 321 Siege Activations . | . . . Martial Activations . | . . . Shielding Activations . | . . . Robots Disrupted . | . . . Combat Hostiles . | . . . Robots Corrupted . | . . . Combat Hostiles . | . . . Parts Fried . | . . . Impact Corruptions 1 | . . 1 Robots Melted . | . . . Combat Hostiles . | . . . Parts Melted . | . . . Heat Transferred 525 | . 150 375 Parts Sabotaged . | . . . Parts Stolen . | . . . Parts Stripped . | . . . Power Chain Reactions . | . . . Alert | -11 -10 -10 ------- Run | Yrd Mat Sub Maximum Alert Level . | . . . Low Security (%) 100 | 100 100 . Level 1 . | . . . Level 2 . | . . . Level 3 . | . . . Level 4 . | . . . Level 5 . | . . . High Security . | . . . Max Security . | . . . Peak Influence 85 | 5 85 . Initial . | . . . Average 20 | . 22 . Influence Increases 535 | 10 315 210 Destroy 0b10 Robot/C 340 | . 220 120 Destroy 0b10 Robot/NC 25 | 10 15 . Destroy Leader 42 | . 42 . Successful Hack 19 | . 19 . Destroy Structure 4 | . 4 . Lose Combat Pursuer 105 | . 15 90 Influence Decreases 445 | 10 315 120 Time Decay 405 | 10 315 80 Lost Part 40 | . . 40 Squads Dispatched 1 | . 1 . Investigation 1 | . 1 . Extermination . | . . . Reinforcement . | . . . Assault . | . . . Garrison . | . . . Intercept . | . . . Searches Triggered . | . . . Construction Impeded . | . . . Haulers Reinforced . | . . . Active Scanning Responses . | . . . Cargo Convoy Interrupts . | . . . Stealth | -11 -10 -10 --------- Run | Yrd Mat Sub Distress Signals 3 | . 3 . Communications Jammed . | . . . Distress Signals . | . . . Times Spotted 31 | . 19 12 Peak Tracking Total 6 | . 5 6 Tactical Retreats 7 | . 1 6 Traps | -11 -10 -10 ------- Run | Yrd Mat Sub Traps Triggered 1 | . 1 . Indirectly . | . . . Trap Hack Attempts . | . . . Triggered . | . . . Disarmed . | . . . Reprogrammed . | . . . Reused . | . . . Traps Extracted . | . . . Installed . | . . . Triggered . | . . . Machines | -11 -10 -10 ---------- Run | Yrd Mat Sub Machines Disabled . | . . . Max in Single Turn . | . . . Machines Repaired . | . . . Machines Dismantled . | . . . Machines Sabotaged . | . . . Overloaded Fab Kills . | . . . Hacking | -11 -10 -10 --------- Run | Yrd Mat Sub Machines Accessed 6 | . 6 . Terminals 6 | . 6 . Fabricators . | . . . Repair Stations . | . . . Recycling Units . | . . . Scanalyzers . | . . . Garrison Access . | . . . Total Hacks 17 | . 17 . Successful 10 | . 10 . Failed 7 | . 7 . Catastrophic . | . . . Database Lockouts . | . . . Manual 13 | . 13 . Terminals 17 | . 17 . Fabricators . | . . . Repair Stations . | . . . Recycling Units . | . . . Scanalyzers . | . . . Garrison Access . | . . . Terminal Hacks 3 | . 3 . Robot Analysis 2 | . 2 . Locate Traps 1 | . 1 . Fabricator Hacks . | . . . Repair Station Hacks . | . . . Recycling Unit Hacks . | . . . Scanalyzer . | . . . Garrison Access Hacks . | . . . Unauthorized Hacks 7 | . 7 . Terminals 7 | . 7 . Botnet 2 | . 2 . Skim 5 | . 5 . Fabricators . | . . . Repair Stations . | . . . Recycling Units . | . . . Scanalyzers . | . . . Garrison Access . | . . . Data Cores Recovered . | . . . Used . | . . . Hacking Detections 4 | . 4 . Full Trace Events . | . . . Feedback Events . | . . . Feedback Blocked . | . . . Robot Schematics Acquired . | . . . Robots Built . | . . . Authchips . | . . . Time . | . . . Total Robot Build Rating . | . . . Part Schematics Acquired . | . . . Parts Built . | . . . Authchips . | . . . Time . | . . . Total Part Build Rating . | . . . Parts Repaired . | . . . Time . | . . . Parts Recycled . | . . . Recycled Matter . | . . . Retrieved Matter . | . . . Retrieved Components . | . . . Parts Scanalyzed . | . . . Part Schematics Acquired . | . . . Parts Damaged . | . . . Bothacking | -11 -10 -10 ------------ Run | Yrd Mat Sub Used RIF Installer . | . . . Robots Hacked . | . . . Non-combat . | . . . Combat . | . . . Robot Hacks Applied . | . . . Relay Couplers Released . | . . . Fabnet Peak Effective % . | . . . Robots Rewired . | . . . Allies Hacked . | . . . Hacks Repelled . | . . . Allies | -11 -10 -10 -------- Run | Yrd Mat Sub Total Allies . | . . . Largest Group . | . . . Highest-Rated Group . | . . . Highest-Rated Ally . | . . . Total Orders . | . . . Ally Attacks . | . . . Total Damage . | . . . Kills . | . . . Allies Corrupted . | . . . Allies Melted . | . . . Intel | -11 -10 -10 ------- Run | Yrd Mat Sub Active Infowar (turns) 1242 | . 1018 224 Seismic 1242 | . 1018 224 Robot Analysis Total 2 | . 2 . Derelict Logs Recovered . | . . . Drone Launches . | . . . Drone Recoveries . | . . . Exploration | -11 -10 -10 ------------- Run | Yrd Mat Sub Turns Passed 1856 | 90 1089 677 Spaces Moved 951 | 42 552 357 Core 6 | 6 . . Treads 945 | 36 552 357 Legs . | . . . Wheels . | . . . Hover . | . . . Flight . | . . . Fastest Speed 50 | 50 160 160 Average Speed 159 | 144 160 160 Slowest Speed 160 | 160 160 160 Overloaded Moves . | . . . Propulsion Burnouts . | . . . Robots Hopped . | . . . Potential Cave-ins . | . . . Cave-ins Triggered . | . . . Exploration Rate (%) 40 | 4 94 24 Regions Visited 2 Branch Regions 1 Pre-discovered Areas 2 | . 1 1 Known Exits Taken 1 | . 1 . Unknown Exits Taken 1 | 1 . . Scrap Searched . | . . . Spaces Dug 4 | . 4 . Terrain Destroyed 4 | . 4 . Melee . | . . . Projectile 4 | . 4 . AOE . | . . . Terrain Rammed . | . . . Walls Destroyed . | . . . Machines Disabled . | . . . Actions | -11 -10 -10 --------- Run | Yrd Mat Sub Total 1171 | 64 688 419 Wait 83 | 1 60 22 Move 949 | 41 551 357 Hop . | . . . Pick Up 30 | 11 16 3 Fast Attach 4 | 3 1 . Attach 10 | 2 2 6 Detach . | . . . Swap 11 | . 7 4 Drop 10 | 1 8 1 Fire 53 | 4 32 17 Melee 9 | . . 9 Ram . | . . . Kick . | . . . Crush 12 | 1 11 . Escape Stasis . | . . . Rewire . | . . . Trap . | . . . Miscellaneous . | . . . Route ------- -11/Scrapyard -10/Materials (discovered 5 exits: *Mat x3 / Min / *Sub) -10/Subcaves (discovered 2 exits: [*Mat] / *Rec) History --------- Turn | Location | Event 13 | -11/Scrapyard | Discovered new exit (range 15) 91 | -11/Scrapyard | Entered Materials 309 | -10/Materials | Build established: Mutant 373 | -10/Materials | Discovered new exit (range 8) 503 | -10/Materials | Loaded intel: 1 repair station location 643 | -10/Materials | Identified exit to Materials 740 | -10/Materials | Identified exit to Mines 740 | -10/Materials | Identified exit to Subcaves 772 | -10/Materials | Discovered exit to Materials (range 14) 775 | -10/Materials | Learned location of 2 exits from Materials 818 | -10/Materials | Learned Storage trap positions 1180 | -10/Materials | Entered Subcaves 1181 | -10/Subcaves | Approached by a straggling Scientist 1181 | -10/Subcaves | Identified exit to Recycling 1212 | -10/Subcaves | Discovered new exit (range 16) 1348 | -10/Subcaves | Learned location of Zion (-6) 1348 | -10/Subcaves | Met a Zionite searching for "candidates" 1397 | -10/Subcaves | Core integrity fell below 50% 1439 | -10/Subcaves | Shifting Twisted Machinery released Sub. Power Source 1456 | -10/Subcaves | Shifting Twisted Machinery released Mak. Hammer 1665 | -10/Subcaves | Core integrity fell below 20% 1857 | -10/Subcaves | Destroyed by Autobeam Turret with Autobeam Last Messages --------------- 01666_ Corrupted Heat Sink self-destruct mechanism malfunctions. 01669_ Flight Unit fries itself beyond repair. 01670_ Lgt. Treads destroyed. 01672_ S-10 Pest destroyed. 01675_ S-10 Pest suffers critical hit (Blast). 01675_ Destroyed Flight Unit. 01675_ S-10 Pest destroyed. 01678_ Subatomizers dissect the Corrupted Heat Sink. 01678_ S-10 Pest destroyed. 01681_ Acquired 12 matter. 01682_ EJ-BFX(c) destroyed. 01683_ Lgt. Ion Engine fries itself beyond repair. 01683_ Acquired 3 matter. 01688_ Acquired 28 matter. 01691_ Lgt. Cannon destroyed. 01712_ Subatomizers dissect the Corrupted Heat Sink. Map ----- +----------------------------------------------------+ | ????????????????????????????????????????##"" ##? | | ?????????????????????????????????????????###" ### | | ??????????????????????????????????????????##"" ## | | ????????????????????????????????????????### " # | | ????????????????????????????????????????#" "" | | ????????????????????????????????????????#"* "" | | ????????????????????????????????????????#" " | | ????????????????????????????????????????#"" ## | | ???????????????????????????????????????# "### | | ??????????????????????????????????????# "#?## | | ??????????????????????????????????????# #??# | | ??????????????????????????????????????# ###### | | ??????????????????????????????????????###?## | | ??????????????????????????????????????????# # | | ??????????????????????????????????????????# # | | ??????????????????????????????????????????### # | | ????????????????????????????????????????????## # | | ?????????????????????????????????????????????# ## | | ?????????????????????????????????????????????# | | ????????????????????????????????#########????# # | | ?????????????????????????????#### ##???#### | | ??????????????#"???????????### ###????## | | ??????????????#" ???????## % ##???## | | ??????????????#" ###### ## #?### | | ??????????????#""t ### % #?# | | ?????????????#> @ ## #####?# | | ??????????????#""t ## ## ##?????## | | ??????????????#" ##### % #?###?###??## | | ??????????????#" ?????# % ##????# #### | | ??????????????#"""???????# % ##?### | | ?????????????????????????# % ### | | ?????????????????????????# | | ?????????????????????????# ### ## ### | | ?????????????????????????# #?### ######?## | | ?????????????????????????# #???# #####???????## | | ????????????????????????? ???# #???????????## | | ????????????????????????? #???# #???????????# | | ????????????????????????? ????# ##??????????## | | ????????????????????????? ????# ####????????# | | ?????????????????????????? ??### ##???????# | | ?????????????????????????????## ######### | | ????????????????????????????## ## ## | | ????????????????????????????# ### ## | | ???????????????????????????# ##?# | | ???????????????????????????# ##??## | | ???????????????????????????### #####????###### | | ?????????????????????????????##??????????????##### | | ?????????????????????????????????????????????????? | | ?????????????????????????????????????????????????? | | ?????????????????????????????????????????????????? | +----------------------------------------------------+ Best States ------------- Heat Dissipation 35 Energy Generation 10 Energy Capacity 250 Matter Stores 300 Matter Capacity 300 Sight Range 16 Terrain Scan Density 10 Evasion (%) 40 Recoil Reduction 2 Item Schematics ----------------- None Robot Schematics ------------------ None Fabricated ------------ Nothing Repaired ---------- Nothing Alien Tech Used ----------------- None Achievements -------------- None Challenges ------------ None Game ------ Seed SiegeMappingExtractor Manual? 0 Play Time 00:14:04 Cumulative 88.4 hours Start 2025.10.21 @ 02:05:58 End 2025.10.21 @ 02:18:37 Sessions 1 Manual Loads 0 Difficulty Rogue Special Mode None Game No. 85 Rogue 85 Adventurer 0 Explorer 0 Win Type - Total 4 Types 4/0/0/0/0/0/0/0/0/0 Lore% 44 Gallery% 50 Achievement% 51 Wizard Run 0 Options --------- Layout 1 ASCII 0 Keyboard 0 Movement Arrows Keybinds 0 Fullscreen 1 Font 24/Smallcaps Map View 50x35 Zoom Use 0% Tactical HUD 1 Map Filters NONE Filters NONE Steam 1 RUN: 78bf2196-0331-4b73-ad45-c38d1a958aea